bitfinex-derivatives/quotes_ETHF0:USTF0_20240924
["timestamp","ask_amount","ask_price","bid_price","bid_amount"]
[1727207676603,3.2e-06,2655.7,2655.6,4.14218]
[1727207677106,3.2e-06,2655.7,2655.6,9.7656]
[1727207677313,3.2e-06,2655.7,2655.6,10.14218]
[1727207678403,3.2e-06,2655.7,2655.6,9.7656]
[1727207678604,3.2e-06,2655.7,2655.6,10.14218]
[1727207679411,0.088,2656.8,2655.6,14.62655758]
[1727207679609,0.102,2657.0,2656.4,3.2078]
[1727207679610,0.3717,2657.0,2656.4,3.2078]
[1727207680010,0.74808,2657.0,2656.4,3.2078]
[1727207680203,0.3717,2657.0,2656.1,3.2078]
[1727207680515,0.3717,2657.0,2655.8,3.2078]
[1727207680516,6.84426,2656.5,2655.8,3.2078]
[1727207680720,1.15447,2656.4,2655.8,3.2078]
[1727207680911,0.384,2656.3,2655.8,3.2078]
[1727207681114,0.37651,2656.1,2655.3,3.2078]
[1727207681412,0.384,2656.3,2655.9,3.2078]
[1727207681605,0.384,2656.3,2655.3,3.26]
[1727207681606,0.384,2656.3,2656.0,0.37651]
[1727207681805,0.384,2656.3,2655.4,5.00146346]
[1727207681806,0.384,2656.3,2656.1,3.2078]
[1727207682004,0.384,2656.3,2655.2,4.226]
[1727207682005,0.384,2656.3,2655.8,3.58434]
[1727207682206,0.384,2656.3,2656.1,3.2078]
[1727207683914,0.384,2656.3,2656.2,3.7648]
[1727207684103,0.384,2656.3,2656.1,3.5843]
[1727207684104,0.384,2656.3,2656.1,3.2078]
[1727207684910,0.384,2656.3,2656.1,3.5843]
[1727207685109,0.384,2656.3,2656.1,3.2078]
[1727207685912,0.7353,2656.9,2656.1,3.2078]
[1727207686110,0.3849,2656.8,2656.1,3.2078]
[1727207686503,0.37643,2656.7,2656.1,3.2078]
[1727207686712,0.37642,2656.7,2656.1,3.2078]
[1727207686913,0.37644,2656.6,2656.1,3.2078]
[1727207687114,0.37649,2656.3,2655.8,3.2078]
[1727207687307,1.1465,2656.2,2655.8,3.2078]
[1727207687503,0.3849,2656.1,2655.8,3.2078]
[1727207687710,7.4097,2656.1,2655.2,7.3458]
[1727207687907,0.37654,2655.9,2655.2,3.2078]
[1727207688318,0.37652,2656.0,2655.2,3.2078]
[1727207688513,6.8527,2656.1,2655.2,3.2078]
[1727207688710,0.37654,2655.9,2655.2,3.2078]
[1727207689020,6.8527,2656.1,2655.2,3.2078]
[1727207689220,7.22922,2656.1,2655.2,3.58443]
[1727207689605,7.22922,2656.1,2654.7,9.091]
[1727207689606,0.3849,2656.1,2655.6,3.58437]
[1727207689921,0.3849,2656.1,2655.7,0.37655]
[1727207690222,0.3849,2656.1,2655.6,3.2078]
[1727207690621,0.37654,2655.9,2655.6,3.2078]
[1727207690912,40.8,2655.9,2655.1,3.2078]
[1727207691115,40.8,2655.9,2655.1,3.58444]
[1727207691310,0.76141,2656.1,2655.2,0.37663]
[1727207691511,0.37652,2656.0,2655.1,3.58444]
[1727207691714,40.8,2656.0,2655.2,3.26]
[1727207691917,0.3849,2656.1,2655.8,3.2078]
[1727207692225,0.3849,2656.1,2655.9,0.37652]
[1727207692819,0.3849,2656.1,2655.9,0.37653]
[1727207693223,0.3849,2656.1,2655.8,3.2078]
[1727207693718,0.3849,2656.1,2655.8,3.58434]
[1727207694017,0.77,2656.2,2655.8,3.58434]
[1727207694018,0.37643,2656.7,2655.9,0.37653]
[1727207694220,0.3869,2656.4,2656.1,3.2078]
[1727207694611,0.3869,2656.4,2656.1,3.5843]
[1727207695023,0.3869,2656.4,2656.1,3.2078]
[1727207699107,1.11872,2656.8,2656.1,3.2078]
[1727207699313,0.3635,2656.7,2656.1,3.2078]
[1727207699619,0.3635,2656.7,2656.4,3.2078]
[1727207699818,0.3635,2656.7,2656.1,3.5843]
[1727207700212,0.3635,2656.7,2655.8,3.2078]
[1727207700420,3.2078,2656.0,2655.2,3.2958]
[1727207700624,1.1315,2655.9,2655.2,3.2078]
[1727207700827,0.37655,2655.8,2655.2,3.2078]
[1727207701025,1.1315,2655.9,2655.2,3.58443]
[1727207701216,1.1315,2655.9,2655.2,3.2078]
[1727207701526,1.50804,2655.9,2655.2,3.58443]
[1727207701730,1.1315,2655.9,2655.2,3.58443]
[1727207702029,1.50804,2655.9,2655.2,3.58443]
[1727207702324,1.1315,2655.9,2655.2,3.2078]
[1727207702522,4.3915,2655.9,2655.2,3.2078]
[1727207702724,3.2078,2655.7,2655.2,3.2078]
[1727207702929,3.2078,2655.4,2654.7,0.088]
[1727207703233,3.2078,2655.4,2653.8,1.622]
[1727207703234,3.2078,2655.0,2654.3,0.37675]
[1727207703528,0.3884,2655.3,2654.2,0.088]
[1727207703529,0.3884,2655.3,2654.6,3.58452]
[1727207703728,0.3884,2655.3,2654.6,3.2078]
[1727207703729,0.3806,2655.1,2654.6,3.2078]
[1727207704736,0.3806,2655.1,2654.3,1.623]
[1727207704737,0.3806,2655.1,2655.0,0.37666]
[1727207704920,0.3884,2655.3,2654.9,3.58447]
[1727207705317,0.3884,2655.3,2654.9,3.2078]
[1727207705638,0.3884,2655.3,2654.9,3.58447]
[1727207705815,0.76503,2655.3,2654.9,3.2078]
[1727207706132,0.3884,2655.3,2654.9,3.2078]
[1727207706520,0.3884,2655.3,2654.9,3.58447]
[1727207707030,0.3884,2655.3,2654.9,3.2078]
[1727207707529,0.37666,2655.0,2654.9,3.2078]
[1727207707717,7.3626,2655.3,2654.4,3.2078]
[1727207707718,0.3672,2655.2,2654.4,3.2078]
[1727207707916,0.3672,2655.2,2654.7,3.2078]
[1727207708116,0.398,2655.1,2654.7,3.2078]
[1727207709123,0.398,2655.1,2654.7,3.5845]
[1727207709333,0.398,2655.1,2654.3,1.553]
[1727207709334,0.3884,2655.3,2655.0,3.2078]
[1727207709518,0.398,2655.6,2655.0,3.2078]
[1727207709722,0.398,2655.6,2654.7,0.94176]
[1727207709723,0.4022,2655.8,2655.4,3.2078]
[1727207709916,5.03611906,2656.0,2655.7,0.37656]
[1727207709917,3.2078,2656.0,2655.7,0.37656]
[1727207710121,3.2078,2656.0,2655.4,3.2078]
[1727207710331,1.85911906,2656.2,2655.7,3.2078]
[1727207710630,0.398,2656.2,2655.7,3.2078]
[1727207710825,0.398,2656.2,2655.8,0.37655]
[1727207711018,0.398,2656.2,2655.7,3.2078]
[1727207711227,0.398,2656.2,2655.2,3.26]
[1727207711228,0.398,2656.2,2656.0,3.2078]
[1727207711732,0.7745,2656.2,2655.5,4.7608]
[1727207711927,0.7745,2656.2,2655.6,0.37657]
[1727207712230,0.7745,2656.2,2655.5,4.7608]
[1727207712231,0.7745,2656.2,2655.5,5.13738]
[1727207712623,0.37651,2656.1,2655.5,5.13738]
[1727207712927,0.37654,2655.9,2655.5,3.2078]
[1727207713121,0.37655,2655.8,2655.5,3.2078]
[1727207713323,1.46111906,2656.1,2655.5,3.2078]
[1727207713524,5.06691906,2656.2,2655.5,3.2078]
[1727207713723,1.46111906,2656.1,2655.5,3.2078]
[1727207714232,1.83762906,2656.1,2655.5,3.2078]
[1727207714426,0.37653,2656.0,2655.5,3.2078]
[1727207714628,1.46111906,2656.1,2655.5,3.2078]
[1727207714820,4.66891906,2655.9,2655.5,3.2078]
[1727207715023,0.3766,2655.5,2655.0,3.2078]
[1727207715227,0.3987,2655.4,2655.0,3.2078]
[1727207715423,1.86011906,2655.7,2655.0,3.2078]
[1727207715624,1.86011906,2655.7,2654.9,3.26]
[1727207715625,0.399,2655.7,2655.3,3.2078]
[1727207716026,0.3987,2655.9,2655.3,3.58441]
[1727207716726,0.3987,2655.9,2655.3,3.2078]
[1727207716930,0.3987,2655.9,2655.6,0.37657]
[1727207717234,0.088,2656.8,2655.8,3.2078]
[1727207717427,3.26,2657.2,2655.9,3.2078]
[1727207717428,0.3666,2656.5,2655.9,3.2078]
[1727207717629,0.3666,2656.5,2655.9,3.58433]
[1727207717831,0.3666,2656.5,2656.0,0.37652]
[1727207718028,0.3666,2656.5,2655.9,3.2078]
[1727207718029,0.74305,2656.5,2655.9,3.58433]
[1727207718222,0.37646,2656.4,2655.9,3.2078]
[1727207718527,0.3666,2656.5,2656.1,0.3765]
[1727207719037,0.3666,2656.5,2656.2,0.37649]
[1727207719236,0.3666,2656.5,2655.9,3.2078]
[1727207719539,0.74305,2656.5,2655.9,3.2078]
[1727207719833,0.74305,2656.5,2655.9,3.58433]
[1727207720133,0.37647,2656.4,2655.9,3.2078]
[1727207720326,0.3666,2656.5,2655.9,3.2078]
[1727207720530,0.3666,2656.5,2655.6,3.2078]
[1727207720531,3.5843,2656.2,2655.6,3.2078]
[1727207720731,0.37651,2656.1,2655.6,3.2078]
[1727207720929,3.2078,2656.2,2655.6,3.58437]
[1727207721129,3.5843,2656.2,2655.6,3.58437]
[1727207721333,0.37651,2656.1,2655.6,3.2078]
[1727207721643,1.13991,2656.1,2655.6,3.2078]
[1727207721837,0.37653,2656.0,2655.6,3.2078]
[1727207722141,0.7634,2656.1,2655.6,3.2078]
[1727207722142,0.3737,2655.9,2655.6,3.2078]
[1727207722535,0.3737,2655.9,2655.2,2.51795569]
[1727207722536,0.37655,2655.8,2655.3,3.2078]
[1727207722725,0.75024,2655.9,2655.3,3.58442]
[1727207723125,0.75024,2655.9,2655.3,3.58441]
[1727207723327,3.5815,2655.9,2655.3,3.2078]
[1727207723528,0.37659,2655.5,2655.3,3.2078]
[1727207723937,4.52287,2655.9,2655.3,3.2078]
[1727207724434,0.37661,2655.4,2654.9,3.2078]
[1727207724638,0.37663,2655.3,2654.9,3.2078]
[1727207724842,0.37664,2655.2,2654.9,3.2078]
[1727207725039,0.37667,2655.0,2654.5,0.96495569]
[1727207725232,0.37667,2655.0,2654.4,3.2078]
[1727207725435,3.2078,2655.1,2654.4,3.2078]
[1727207725731,0.3767,2654.8,2654.4,3.2078]
[1727207725935,0.94166,2655.0,2654.4,3.2078]
[1727207726136,0.37671,2654.7,2654.4,3.2078]
[1727207726340,0.3652,2654.6,2654.0,3.2078]
[1727207726640,0.3652,2654.6,2654.0,3.58459]
[1727207726836,0.3652,2654.6,2654.0,3.2078]
[1727207727041,0.37673,2654.5,2654.0,3.2078]
[1727207728141,0.767,2654.6,2654.0,3.2078]
[1727207728340,0.37674,2654.5,2654.0,3.2078]
[1727207728536,0.767,2654.6,2654.0,3.2078]
[1727207728938,0.37678,2654.2,2654.0,3.2078]
[1727207729753,1.169,2654.6,2654.0,3.2078]
[1727207729754,0.37675,2654.4,2654.0,3.2078]
[1727207730440,1.169,2654.6,2654.0,3.2078]
[1727207730840,0.37675,2654.4,2654.0,3.2078]
[1727207731138,0.37679,2654.1,2653.7,3.2078]
[1727207731332,0.37681,2654.0,2653.7,3.2078]
[1727207731840,0.3768,2654.1,2653.7,3.2078]
[1727207732145,0.37683,2653.9,2653.7,3.2078]
[1727207732349,3.2078,2653.9,2653.3,3.5847]
[1727207732534,0.74231,2654.0,2653.3,3.2078]
[1727207732535,0.3792,2653.8,2653.3,3.2078]
[1727207733045,0.75604,2653.8,2653.3,3.2078]
[1727207733439,0.3792,2653.8,2653.3,3.2078]
[1727207733632,0.37685,2653.7,2653.3,3.2078]
[1727207734038,0.7813,2653.8,2653.3,3.2078]
[1727207734239,3.26,2653.5,2652.5,4.45991349]
[1727207734448,0.37692,2653.2,2652.5,4.83691349]
[1727207734739,0.3972,2653.1,2652.6,0.377]
[1727207735135,0.3972,2653.1,2652.5,4.45991349]
[1727207735337,0.3972,2653.1,2652.8,3.2078]
[1727207737943,0.37696,2652.9,2652.8,3.2078]
[1727207738245,0.377,2652.7,2652.5,1.25211349]
[1727207738451,3.2078,2652.7,2652.5,1.25211349]
[1727207738653,6.3972,2653.1,2652.5,1.25211349]
[1727207738838,9.98194,2653.1,2652.5,1.25211349]
[1727207739340,0.37695,2653.0,2652.5,1.25211349]
[1727207739536,9.98194,2653.1,2652.5,1.25211349]
[1727207739843,9.605,2653.1,2652.5,1.25211349]
[1727207740243,6.3972,2653.1,2653.0,3.2078]
[1727207740451,6.3972,2653.1,2652.7,3.58479]
[1727207740749,6.3972,2653.1,2652.7,3.2078]
[1727207740939,6.0,2653.1,2653.0,3.2078]
[1727207745852,6.0,2653.1,2653.0,3.58475]
[1727207747045,6.0,2653.1,2653.0,3.2078]
[1727207747551,6.0,2653.1,2653.0,3.58475]
[1727207748457,0.83166,2653.1,2653.0,14.29672]
[1727207748652,3.2078,2654.2,2653.0,12.9774]
[1727207748653,0.37685,2653.7,2653.0,12.9774]
[1727207748848,0.37689,2653.4,2653.0,5.27779]
[1727207749247,3.2078,2653.6,2653.0,5.27779]
[1727207749248,0.37691,2653.3,2653.0,4.90085]
[1727207749556,0.37693,2653.1,2653.0,4.90085]
[1727207749754,3.26,2653.5,2653.0,4.90085]
[1727207749755,0.77073,2653.2,2653.0,4.90085]
[1727207749948,0.3938,2653.2,2653.0,4.90085]
[1727207750448,0.37693,2653.1,2653.0,4.90085]
[1727207750754,0.37693,2653.1,2653.0,3.2078]
[1727207751143,0.3938,2653.2,2652.6,0.377]
[1727207751345,0.3938,2653.2,2652.6,1.69305]
[1727207751653,0.37693,2653.1,2652.6,2.07005]
[1727207751852,0.37693,2653.1,2652.6,1.69305]
[1727207752351,0.37693,2653.1,2652.6,2.07005]
[1727207753748,0.3938,2653.2,2652.6,1.69305]
[1727207754053,0.3938,2653.2,2652.9,0.37695]
[1727207754552,0.3938,2653.2,2652.9,2.07]
[1727207754757,0.3938,2653.2,2652.9,1.69305]
[1727207754955,0.37695,2653.0,2652.5,3.58481]
[1727207755152,0.3938,2653.2,2652.5,4.90085]
[1727207755351,0.37693,2653.1,2652.6,0.377]
[1727207755544,0.37693,2653.1,2652.7,0.37699]
[1727207755748,0.37693,2653.1,2652.7,2.07004]
[1727207756152,0.37693,2653.1,2652.7,1.69305]
[1727207756355,0.37693,2653.1,2652.7,2.07004]
[1727207756854,0.37693,2653.1,2652.7,1.69305]
[1727207757257,0.3938,2653.2,2652.8,3.58476]
[1727207757258,0.77072,2653.2,2652.8,3.58476]
[1727207757450,0.77072,2653.2,2652.8,5.27781]
[1727207757755,3.2078,2654.2,2653.1,3.2078]
[1727207757955,0.3868,2654.1,2653.5,3.2078]
[1727207758149,0.37681,2654.0,2653.6,0.37685]
[1727207758349,0.76359,2654.1,2653.5,4.90085]
[1727207758646,0.76359,2654.1,2653.7,0.37684]
[1727207758847,0.7636,2654.1,2653.7,1.69305]
[1727207759263,0.7636,2654.1,2653.7,2.0699]
[1727207759561,0.37682,2653.9,2653.7,1.69305]
[1727207759753,0.37681,2654.0,2653.7,1.69305]
[1727207760051,0.37682,2653.9,2653.7,1.69305]
[1727207760255,4.5888,2654.1,2653.7,1.69305]
[1727207760558,0.37683,2653.8,2653.7,1.69305]
[1727207760748,0.37683,2653.9,2653.7,1.69305]
[1727207760945,3.6468,2654.1,2653.7,1.69305]
[1727207761249,0.3868,2654.1,2653.7,1.69305]
[1727207761446,0.7636,2654.1,2653.7,1.69305]
[1727207762152,0.76359,2654.1,2653.7,1.69305]
[1727207762761,0.3868,2654.1,2653.7,2.06989]
[1727207762958,0.3868,2654.1,2653.7,1.69305]
[1727207763556,0.37683,2653.8,2653.5,3.2078]
[1727207763759,0.37683,2653.8,2653.5,4.90085]
[1727207763953,3.2078,2653.9,2653.5,4.90085]
[1727207764160,0.37691,2653.3,2652.9,0.088]
[1727207764360,0.3747,2653.2,2652.9,1.69305]
[1727207764556,0.75162,2653.2,2652.9,1.69305]
[1727207765051,0.3747,2653.2,2652.9,1.69305]
[1727207765667,0.75162,2653.2,2652.9,1.69305]
[1727207766454,0.3747,2653.2,2652.9,1.69305]
[1727207767059,0.37695,2653.0,2652.9,1.69305]
[1727207767267,0.37695,2653.0,2652.6,3.2078]
[1727207767459,0.4021,2652.9,2652.6,4.90085]
[1727207767954,0.4021,2652.9,2651.4,4.17275569]
[1727207767955,4.15028,2652.7,2651.4,4.17275569]
[1727207768156,6.4678,2651.5,2650.8,3.2078]
[1727207768357,0.94284,2651.7,2650.8,1.69305]
[1727207768358,3.26,2650.9,2650.8,1.69305]
[1727207768559,0.94294,2651.4,2650.8,1.69305]
[1727207768560,3.26,2651.2,2650.8,1.69305]
[1727207768759,3.26,2651.2,2650.4,0.3899]
[1727207768760,0.37724,2651.0,2650.4,0.3899]
[1727207768963,3.26,2651.2,2650.4,2.08295]
[1727207769171,3.26,2650.9,2650.4,1.69305]
[1727207769464,0.3773,2650.5,2649.8,0.3774]
[1727207769655,3.58511,2650.5,2649.8,3.2078]
[1727207769857,3.58511,2650.5,2649.8,4.90085]
[1727207770058,3.58511,2650.5,2649.8,5.27824]
[1727207770263,3.58511,2650.5,2649.8,4.90085]
[1727207770664,3.26,2650.2,2649.8,4.90085]
[1727207770865,3.2078,2650.5,2649.8,4.90085]
[1727207771059,3.2078,2650.5,2649.9,0.37738]
[1727207771258,3.2078,2650.5,2649.8,5.27824]
[1727207771259,3.58511,2650.5,2649.8,5.27824]
[1727207771454,3.26,2650.3,2649.8,4.90085]
[1727207771663,3.2078,2650.2,2649.8,1.69305]
[1727207772355,3.26,2650.0,2649.8,1.69305]
[1727207772960,3.2078,2650.2,2649.8,1.69305]
[1727207773164,2.38413,2650.9,2649.8,5.46665]
[1727207773165,3.67305,2650.9,2649.8,5.46665]
[1727207773359,0.37727,2650.8,2650.1,0.37735]
[1727207773560,3.2078,2650.9,2649.8,1.69305]
[1727207773561,3.58505,2650.9,2650.2,0.37734]
[1727207773763,3.2078,2650.6,2650.3,0.37733]
[1727207774274,3.2078,2650.6,2650.3,1.69305]
[1727207774467,0.37725,2650.9,2650.3,2.07037]
[1727207774666,0.37724,2650.9,2650.3,2.07037]
[1727207774861,3.5953,2651.0,2650.3,2.07038]
[1727207775172,6.84507,2650.7,2650.3,1.69305]
[1727207775670,6.4678,2650.7,2650.3,1.69305]
[1727207776063,0.3773,2650.5,2650.3,1.69305]
[1727207776384,1.33059,2651.0,2650.3,1.69305]
[1727207776385,3.5953,2651.0,2650.3,1.69305]
[1727207776568,3.5953,2651.0,2650.7,0.37727]
[1727207776569,3.2078,2651.0,2650.7,0.37727]
[1727207776761,3.2078,2651.0,2650.7,2.07032]
[1727207777068,3.2078,2651.0,2650.7,1.69305]
[1727207777666,3.2078,2651.0,2650.7,2.07031]
[1727207778067,0.37725,2650.9,2650.7,1.69305]
[1727207778266,0.37726,2650.8,2650.7,1.69305]
[1727207778567,3.63726,2650.8,2650.7,1.69305]
[1727207778762,0.37728,2650.7,2650.4,0.3949]
[1727207779077,0.37728,2650.7,2650.4,2.08795]
[1727207779979,3.63727,2650.8,2650.4,2.08795]
[1727207780474,3.26,2650.8,2650.4,2.46526]
[1727207780667,0.37728,2650.7,2650.4,2.08795]
[1727207781666,3.26,2650.8,2650.4,2.46526]
[1727207781667,3.63726,2650.8,2650.4,2.46526]
[1727207781875,3.63727,2650.8,2650.4,2.46526]
[1727207782179,3.2078,2651.0,2650.4,2.08795]
[1727207782180,0.37724,2650.9,2650.4,2.08795]
[1727207782377,0.37726,2650.8,2650.4,2.46526]
[1727207783671,3.2078,2651.0,2650.4,2.08795]
[1727207783978,0.37725,2650.9,2650.5,0.3773]
[1727207784275,0.37726,2650.8,2650.5,0.3773]
[1727207784573,0.37726,2650.8,2650.5,2.07035]
[1727207784776,3.2078,2651.0,2650.5,1.69305]
[1727207784970,3.58504,2651.0,2650.6,0.37728]
[1727207785175,3.2078,2651.0,2650.6,0.37728]
[1727207785476,3.2078,2651.0,2650.6,2.07033]
[1727207785477,3.58503,2651.0,2650.6,2.07033]
[1727207785968,3.2078,2651.0,2650.6,1.69305]
[1727207786169,0.37727,2650.7,2650.6,1.69305]
[1727207786770,3.26,2650.8,2650.6,1.69305]
[1727207786971,3.63726,2650.8,2650.6,1.69305]
[1727207788065,3.26,2650.8,2650.6,1.69305]
[1727207790481,0.3685,2650.9,2650.6,1.69305]
[1727207792071,0.3685,2650.9,2650.6,2.07033]
[1727207792581,3.2078,2651.0,2650.9,0.37724]
[1727207792775,4.109,2651.6,2651.2,0.37719]
[1727207792776,3.5832,2651.5,2651.2,0.37719]
[1727207792975,3.5832,2651.5,2650.7,3.7728]
[1727207792976,3.5832,2651.5,2650.8,0.94315]
[1727207793178,3.5832,2651.5,2651.1,0.37722]
[1727207793369,6.8432,2651.5,2651.2,0.37719]
[1727207793771,6.8432,2651.5,2651.2,1.69305]
[1727207794082,7.22036,2651.5,2651.2,1.69305]
[1727207794471,7.22036,2651.5,2650.7,0.3674]
[1727207794671,7.22036,2651.5,2651.0,0.37722]
[1727207794881,7.22036,2651.5,2650.7,2.06045]
[1727207794882,0.37718,2651.4,2650.9,0.37724]
[1727207795074,6.8432,2651.5,2650.8,0.94315]
[1727207795275,6.8432,2651.5,2651.2,0.3772]
[1727207795276,3.5832,2651.5,2651.2,0.3772]
[1727207795474,3.5832,2651.5,2651.1,0.37721]
[1727207795674,6.8432,2651.5,2651.1,0.37721]
[1727207795879,6.8432,2651.5,2651.1,2.07026]
[1727207796079,6.8432,2651.5,2651.2,0.3772]
[1727207796283,6.8432,2651.5,2651.1,2.07026]
[1727207797489,6.8432,2651.5,2651.1,1.69305]
[1727207797680,6.8432,2651.5,2651.1,2.07026]
[1727207798374,7.22036,2651.5,2651.1,1.69305]
[1727207798581,6.8432,2651.5,2651.1,1.69305]
[1727207799390,7.22037,2651.5,2651.1,1.69305]
[1727207799684,7.22036,2651.5,2651.1,1.69305]
[1727207800277,6.8432,2651.5,2651.1,1.69305]
[1727207800883,7.22036,2651.5,2651.1,1.69305]
[1727207801082,6.8432,2651.5,2651.1,1.69305]
[1727207801687,7.22036,2651.5,2651.1,1.69305]
[1727207802180,3.2078,2651.2,2651.1,1.69305]
[1727207802383,3.2078,2651.2,2650.5,4.138]
[1727207802384,0.37725,2650.9,2650.5,4.138]
[1727207802691,3.26,2650.7,2650.5,5.83105]
[1727207802904,3.2078,2651.2,2650.5,5.83105]
[1727207803090,3.2078,2651.2,2650.7,0.37727]
[1727207803281,3.2078,2651.2,2650.8,0.37725]
[1727207803783,3.2078,2651.2,2650.8,2.0703]
[1727207803984,3.2078,2651.2,2650.8,1.69305]
[1727207804183,3.2078,2651.2,2650.8,2.07031]
[1727207804485,3.2078,2651.2,2650.8,1.69305]
[1727207804810,3.2078,2651.2,2650.8,2.0703]
[1727207804986,3.2078,2651.2,2650.8,1.69305]
[1727207805383,0.7666,2651.5,2650.8,1.69305]
[1727207805384,3.2078,2651.5,2650.9,6.9798]
[1727207805584,3.2078,2651.5,2650.9,3.2078]
[1727207805785,3.2078,2651.5,2651.2,0.37719]
[1727207805991,3.5849,2651.9,2651.2,5.27804]
[1727207806390,3.2078,2651.9,2651.2,5.27804]
[1727207806583,3.2078,2651.9,2651.3,0.37719]
[1727207806790,3.2078,2651.9,2651.4,0.37717]
[1727207806989,3.2078,2651.9,2651.3,2.46823]
[1727207807187,3.2078,2651.9,2651.3,2.09105]
[1727207807494,3.2078,2651.9,2651.5,0.37716]
[1727207807790,3.2078,2651.9,2651.6,0.37714]
[1727207807990,3.2078,2651.9,2651.6,1.69305]
[1727207809380,3.26,2651.8,2651.6,1.69305]
[1727207810084,3.7712,2651.7,2651.2,3.2078]
[1727207810288,3.26,2651.8,2651.2,5.27804]
[1727207810884,3.26,2651.8,2651.3,0.37719]
[1727207811193,3.26,2651.8,2651.2,5.27804]
[1727207811587,3.26,2651.8,2651.2,4.90085]
[1727207811894,3.26,2651.8,2651.2,5.27804]
[1727207812090,3.26,2651.8,2651.3,0.37719]
[1727207812490,3.26,2651.8,2651.3,2.07024]
[1727207813287,4.23621138,2651.8,2651.3,2.07024]
[1727207814896,3.26,2651.8,2651.5,0.37716]
[1727207815092,3.26,2651.8,2651.4,0.37717]
[1727207815399,3.26,2651.8,2651.4,2.07022]
[1727207816890,0.97621138,2651.6,2651.4,2.07022]
[1727207817296,0.97621138,2651.6,2651.4,1.69305]
[1727207817695,0.97621138,2651.5,2651.4,1.69305]
[1727207817894,1.46649573,2651.6,2651.4,1.69305]
[1727207818499,3.2078,2651.9,2651.4,2.07022]
[1727207818500,0.98531802,2651.5,2651.4,2.07022]
[1727207818696,0.98531802,2651.6,2651.4,2.07022]
[1727207818887,0.98531802,2651.6,2651.5,0.37716]
[1727207819291,1.46649573,2651.7,2651.5,1.69305]
[1727207819489,1.46649573,2651.7,2651.5,2.07021]
[1727207819900,0.98539042,2651.6,2651.5,1.69305]
[1727207820498,1.46649573,2651.7,2651.5,1.69305]
[1727207820801,0.98545815,2651.6,2651.5,1.69305]
[1727207821192,3.26,2651.6,2651.5,1.69305]
[1727207821395,4.72649573,2651.6,2651.5,1.69305]
[1727207822303,3.26,2651.6,2651.5,1.69305]
[1727207822904,1.47848427,2651.6,2651.5,2.0702]
[1727207823111,1.47848427,2651.7,2651.6,0.37714]
[1727207823315,1.47848427,2651.7,2651.5,1.69305]
[1727207823498,0.98554306,2651.6,2651.5,2.0702]
[1727207823897,4.19332197,2651.9,2651.5,2.07021]
[1727207824400,2.65,2651.7,2651.6,0.37714]
[1727207824599,2.65,2651.7,2651.5,2.0702]
[1727207825199,6.84332197,2651.9,2651.7,0.37712]
[1727207825510,2.65,2651.9,2651.8,3.58492]
[1727207825712,2.65,2651.9,2651.8,0.37712]
[1727207826006,2.65,2651.9,2651.8,2.07017]
[1727207826797,2.65,2652.1,2651.9,0.37709]
[1727207827207,2.65,2652.1,2651.9,2.07014]
[1727207827801,0.98552197,2652.2,2652.0,0.37709]
[1727207828003,4.39282197,2652.4,2652.0,2.07014]
[1727207828207,2.65,2652.2,2652.0,1.69305]
[1727207828799,2.65,2652.2,2652.0,2.07013]
[1727207828996,2.65,2652.2,2652.1,0.37707]
[1727207829200,2.65,2652.2,2652.1,2.07012]
[1727207830104,2.65,2652.2,2652.1,1.69305]
[1727207831512,2.65,2652.2,2652.1,2.07012]
[1727207831809,2.65,2652.2,2652.1,1.69305]
[1727207832112,4.12848427,2652.2,2652.1,1.69305]
[1727207832903,4.12848427,2652.2,2652.1,2.07012]
[1727207833600,4.12848427,2652.2,2652.1,1.69305]
[1727207834401,4.12848427,2652.2,2652.1,2.07012]
[1727207834828,4.12848427,2652.2,2652.1,1.69305]
[1727207835008,3.02706,2652.2,2651.7,3.2078]
[1727207835202,2.65,2651.8,2651.7,1.69305]
[1727207835402,2.65,2651.8,2651.3,3.2078]
[1727207835403,11.10655863,2651.8,2651.3,3.2078]
[1727207835610,4.12815036,2651.5,2651.4,1.69305]
[1727207836409,4.12815036,2651.5,2651.4,2.07022]
[1727207836616,0.98564884,2651.5,2651.4,2.07022]
[1727207836908,4.12815036,2651.6,2651.5,0.37716]
[1727207837404,4.12815036,2651.6,2651.5,2.07021]
[1727207838510,4.12815036,2651.6,2651.5,1.69305]
[1727207838710,2.65,2651.6,2651.5,1.69305]
[1727207839615,3.63630194,2652.0,2651.7,0.37713]
[1727207840023,3.63630194,2652.0,2651.7,2.07018]
[1727207840214,2.65,2651.8,2651.7,1.69305]
[1727207841118,3.63630194,2652.0,2651.7,2.07018]
[1727207841714,3.63630194,2652.0,2651.8,0.37711]
[1727207841918,3.63630194,2652.0,2651.7,1.69305]
[1727207841919,2.65,2652.0,2651.7,1.69305]
[1727207842111,2.65,2652.0,2651.8,0.37711]
[1727207842112,3.63630194,2652.0,2651.8,0.37711]
[1727207842513,3.63630194,2652.0,2651.8,1.69305]
[1727207843319,3.63630194,2652.0,2651.8,2.07016]
[1727207844212,3.63630194,2652.0,2651.8,1.69305]
[1727207845015,0.98630194,2652.3,2651.9,6.979]
[1727207845315,2.65,2652.4,2652.2,0.37705]
[1727207845516,2.65,2652.4,2652.3,0.37705]
[1727207845818,1.38110194,2652.5,2652.3,0.37705]
[1727207846011,1.38110194,2652.5,2652.3,1.69305]